bitfinex/quotes_SOLUSD_20241031
["timestamp","ask_amount","ask_price","bid_price","bid_amount"]
[1730335591667,70.0,175.56,175.51,23.776884]
[1730335591866,70.0,175.56,175.5,19.943]
[1730335592062,70.0,175.54,175.5,19.943]
[1730335593079,70.0,175.54,175.5,14.245]
[1730335593264,70.0,175.54,175.51,23.776884]
[1730335593584,70.0,175.54,175.5,14.245]
[1730335593762,70.0,175.52,175.48,23.776884]
[1730335595771,70.0,175.52,175.48,29.475484]
[1730335598068,75.6967,175.54,175.48,29.475484]
[1730335598464,75.6967,175.54,175.48,43.722084]
[1730335600275,70.0,175.52,175.48,43.722084]
[1730335600870,75.6967,175.54,175.48,43.722084]
[1730335601789,70.0,175.52,175.48,43.722084]
[1730335604273,70.0,175.54,175.48,43.722084]
[1730335605485,16.1536,175.55,175.48,43.722084]
[1730335606371,70.0,175.54,175.48,43.722084]
[1730335609471,75.6969,175.54,175.48,43.722084]
[1730335610091,70.0,175.52,175.48,38.023484]
[1730335610269,70.0,175.52,175.48,23.776884]
[1730335611067,70.0,175.52,175.48,29.475484]
[1730335611680,75.6974,175.52,175.48,23.776884]
[1730335611882,70.0,175.52,175.48,29.475484]
[1730335618093,70.0,175.52,175.48,43.722084]
[1730335620878,70.0,175.54,175.48,43.722084]
[1730335623706,70.0,175.56,175.48,72.215284]
[1730335623888,70.0,175.58,175.48,72.215284]
[1730335624088,70.0,175.58,175.48,100.808484]
[1730335624491,15.8722,175.59,175.48,100.908484]
[1730335624687,70.0,175.58,175.5,23.776884]
[1730335626202,70.0,175.58,175.52,23.776884]
[1730335627487,70.0,175.58,175.54,23.776884]
[1730335628612,70.0,175.58,175.54,29.473384]
[1730335629995,70.0,175.56,175.48,56.9864]
[1730335630189,70.0,175.56,175.51,23.776884]
[1730335630501,70.0,175.54,175.51,23.776884]
[1730335631500,70.0,175.54,175.5,14.2447]
[1730335631893,75.6969,175.54,175.48,28.4932]
[1730335632213,70.0,175.52,175.45,19.9486]
[1730335633186,70.0,175.52,175.46,23.776884]
[1730335633386,70.0,175.52,175.48,23.776884]
[1730335634687,70.0,175.52,175.49,5.6983]
[1730335639013,75.6973,175.52,175.48,23.776884]
[1730335641309,75.6973,175.52,175.48,29.475384]
[1730335642920,70.0,175.5,175.47,14.2474]
[1730335645022,85.8509,175.53,175.48,23.776884]
[1730335645901,91.5481,175.53,175.48,23.776884]
[1730335647015,70.0,175.53,175.48,43.721984]
[1730335647520,70.0,175.55,175.48,43.721984]
[1730335648100,75.6964,175.55,175.48,43.721984]
[1730335649423,70.0,175.53,175.48,43.721984]
[1730335650917,75.6964,175.55,175.48,43.721984]
[1730335651300,70.0,175.53,175.48,43.721984]
[1730335653218,75.6972,175.53,175.48,43.721984]
[1730335653519,75.6972,175.53,175.48,23.776884]
[1730335653908,70.0,175.51,175.48,23.776884]
[1730335654112,70.0,175.49,175.45,19.9479]
[1730335655330,75.6984,175.49,175.41,19.9532]
[1730335655704,70.0,175.47,175.41,19.9532]
[1730335656419,70.0,175.45,175.41,19.9532]
[1730335657408,70.0,175.45,175.37,19.9577]
[1730335657808,70.0,175.45,175.38,23.776884]
[1730335659622,70.0,175.45,175.37,23.776884]
[1730335659807,75.6996,175.45,175.4,23.776884]
[1730335660632,70.0,175.45,175.4,23.776884]
[1730335661827,70.0,175.45,175.42,23.776884]
[1730335663011,70.0,175.45,175.42,29.477384]
[1730335663810,70.0,175.45,175.42,43.728884]
[1730335665932,5.6993,175.46,175.42,43.728884]
[1730335668942,75.6983,175.49,175.42,43.728884]
[1730335670833,70.0,175.47,175.42,43.728884]
[1730335671136,75.699,175.47,175.42,43.728884]
[1730335673231,70.0,175.45,175.42,23.776884]
[1730335673833,86.1524,175.5,175.42,43.728984]
[1730335674144,75.6973,175.52,175.42,43.728984]
[1730335674945,90.7596,175.54,175.42,88.975684]
[1730335675149,70.0,175.52,175.42,88.975684]
[1730335676222,5.6971,175.53,175.42,88.975684]
[1730335681725,70.0,175.54,175.45,6.336]
[1730335682051,70.0,175.54,175.46,23.776884]
[1730335682341,70.0,175.56,175.46,23.776884]
[1730335682925,5.6965,175.55,175.47,19.9463]
[1730335683340,5.6965,175.55,175.48,23.776884]
[1730335683535,70.0,175.54,175.48,23.776884]
[1730335683949,70.0,175.52,175.48,23.776884]
[1730335684130,75.6974,175.52,175.48,23.776884]
[1730335685345,70.0,175.49,175.44,19.9495]
[1730335685749,70.0,175.49,175.4,28.5053]
[1730335685938,70.0,175.47,175.41,19.9532]
[1730335686263,70.0,175.47,175.41,14.2523]
[1730335687138,70.0,175.49,175.41,14.2523]
[1730335687527,70.0,175.51,175.41,14.2523]
[1730335687961,70.0,175.51,175.42,23.776884]
[1730335688157,70.0,175.51,175.43,19.9508]
[1730335688454,70.0,175.51,175.44,23.776884]
[1730335688654,75.6976,175.51,175.44,23.776884]
[1730335690136,75.6976,175.51,175.46,23.776884]
[1730335690562,16.5442,175.52,175.46,23.776884]
[1730335691356,70.0,175.51,175.46,23.776884]
[1730335691539,22.2415,175.52,175.46,23.776884]
[1730335692260,70.0,175.53,175.47,19.9463]
[1730335692553,70.0,175.53,175.48,23.776884]
[1730335692739,75.6964,175.55,175.48,23.776884]
[1730335693258,70.0,175.55,175.48,23.776884]
[1730335694342,15.0225,175.56,175.48,23.776884]
[1730335694544,15.0225,175.56,175.5,23.776884]
[1730335694746,20.7185,175.56,175.5,23.776884]
[1730335695641,20.7185,175.56,175.52,23.776884]
[1730335696544,15.0225,175.56,175.52,23.776884]
[1730335697471,15.0225,175.56,175.52,29.473984]
[1730335700283,20.7186,175.56,175.52,23.776884]
[1730335700562,70.0,175.54,175.45,19.9486]
[1730335701650,70.0,175.54,175.45,48.4467]
[1730335702061,70.0,175.54,175.46,23.776884]
[1730335702673,70.0,175.54,175.47,19.9463]
[1730335702962,70.0,175.54,175.48,23.776884]
[1730335703353,75.6968,175.54,175.48,23.776884]
[1730335703551,70.0,175.54,175.48,23.776884]
[1730335704440,75.6967,175.54,175.48,23.776884]
[1730335705466,75.6967,175.54,175.5,23.776884]
[1730335706846,85.0225,175.56,175.5,43.719784]
[1730335707060,90.7185,175.56,175.5,43.719784]
[1730335708573,15.0225,175.56,175.5,43.719784]
[1730335708871,85.0225,175.56,175.5,43.719784]
[1730335709761,90.7186,175.56,175.5,43.719784]
[1730335712164,70.0,175.54,175.5,43.719884]
[1730335714160,70.0,175.54,175.5,23.776884]
[1730335714371,70.0,175.52,175.48,23.776884]
[1730335714755,70.0,175.52,175.47,14.247]
[1730335714961,70.0,175.5,175.43,14.2499]
[1730335715687,70.0,175.48,175.43,14.2499]
[1730335715974,70.0,175.48,175.4,19.9543]
[1730335715975,75.6987,175.48,175.4,19.9543]
[1730335717295,75.6987,175.48,175.41,23.776884]
[1730335718584,75.6987,175.48,175.43,23.776884]
[1730335719691,70.0,175.48,175.43,23.776884]
[1730335720682,70.0,175.48,175.45,23.776884]
[1730335725675,70.0,175.48,175.45,29.476484]
[1730335727083,70.0,175.48,175.45,23.776884]
[1730335729302,75.6987,175.48,175.42,14.2515]
[1730335729505,70.0,175.46,175.43,23.776884]
[1730335729794,75.6993,175.46,175.43,23.776884]
[1730335732988,70.0,175.44,175.36,19.9588]
[1730335733394,70.0,175.42,175.36,19.9588]
[1730335734587,70.0,175.42,175.37,23.776884]
[1730335736368,70.0,175.42,175.38,5.7019]
[1730335736792,70.0,175.42,175.39,23.776884]
[1730335737569,70.0,175.42,175.39,29.478384]
[1730335740195,70.0,175.48,175.39,72.240084]
[1730335742194,70.0,175.46,175.39,43.732284]
[1730335742388,70.0,175.44,175.39,43.732284]
[1730335743872,5.6986,175.48,175.39,43.732284]
[1730335743873,70.0,175.47,175.39,43.732284]
[1730335744268,70.0,175.45,175.39,43.732284]
[1730335747893,85.5447,175.5,175.39,72.240084]
[1730335750588,91.2427,175.5,175.39,72.240084]
[1730335750787,75.6974,175.52,175.41,0.1]
[1730335751302,70.0,175.5,175.39,87.310284]
[1730335752281,75.6981,175.5,175.39,87.310284]
[1730335754093,70.0,175.48,175.39,87.310284]
[1730335754296,70.0,175.48,175.39,72.240084]
[1730335754687,70.0,175.46,175.39,48.4632]
[1730335755482,70.0,175.46,175.39,28.5078]
[1730335756309,70.0,175.46,175.4,23.776884]
[1730335756487,70.0,175.46,175.41,5.7009]
[1730335756799,70.0,175.46,175.42,23.776884]
[1730335757886,70.0,175.44,175.41,23.776884]
[1730335758088,70.0,175.44,175.32,0.1]
[1730335758089,70.0,175.44,175.38,23.776884]
[1730335758301,70.0,175.41,175.37,14.2554]
[1730335759193,5.7,175.44,175.34,34.446026]
[1730335759403,70.0,175.42,175.35,23.776884]
[1730335760184,70.0,175.42,175.36,19.9588]
[1730335760392,70.0,175.42,175.37,23.776884]
[1730335761284,75.7007,175.42,175.37,23.776884]
[1730335762291,75.7007,175.42,175.37,29.478784]
[1730335763405,70.0,175.42,175.37,29.478784]
[1730335763908,70.0,175.39,175.33,5.7035]
[1730335764088,70.0,175.39,175.34,23.776884]
[1730335764290,75.7016,175.39,175.34,29.479884]
[1730335765315,70.0,175.34,175.3,14.2611]
[1730335766690,70.0,175.38,175.3,14.2611]
[1730335766882,70.0,175.36,175.31,23.776884]
[1730335768189,70.0,175.38,175.33,23.776884]
[1730335771505,70.0,175.38,175.34,5.7032]
[1730335779598,70.0,175.38,175.34,19.9612]
[1730335779911,70.0,175.4,175.35,23.776884]
[1730335781600,70.0,175.4,175.37,23.776884]
[1730335783016,70.0,175.4,175.38,5.7019]
[1730335790209,70.0,175.4,175.38,31.2082656]
[1730335791331,70.0,175.4,175.38,19.9566]
[1730335791928,70.0,175.4,175.38,31.2082656]
[1730335792112,70.0,175.4,175.38,19.9566]
[1730335799631,70.0,175.4,175.38,31.2082656]
[1730335802738,70.0,175.4,175.38,19.9566]
[1730335807917,70.0,175.4,175.38,31.2082656]
[1730335808442,70.0,175.4,175.38,19.9566]
[1730335808926,70.0,175.4,175.38,31.2082656]
[1730335809125,70.0,175.4,175.38,19.9566]
[1730335809845,81.2516656,175.4,175.38,14.2547]
[1730335810013,70.0,175.38,175.35,19.9594]
[1730335810217,11.2516656,175.37,175.35,14.2569]
[1730335812230,11.2516656,175.37,175.33,23.776884]
[1730335813019,81.2516656,175.36,175.33,23.776884]
[1730335813222,70.0,175.34,175.32,14.2596]
[1730335813633,70.0,175.34,175.32,19.9634]
[1730335814143,70.0,175.34,175.32,14.2596]
[1730335815320,81.2516656,175.34,175.29,11.2516656]
[1730335815522,81.2516656,175.34,175.3,23.776884]
[1730335816126,70.0,175.34,175.3,23.776884]
[1730335817354,81.2516656,175.34,175.3,23.776884]
[1730335817724,81.2516656,175.34,175.31,5.7041]
[1730335818219,81.2516656,175.34,175.31,19.9645]
[1730335818419,70.0,175.37,175.32,35.0285496]
[1730335819347,70.0,175.37,175.34,11.2516656]
[1730335821232,70.0,175.41,175.37,35.0285496]
[1730335821433,70.0,175.41,175.39,11.2516656]
[1730335821845,86.5884,175.44,175.4,11.2516656]
[1730335822447,81.2516656,175.46,175.41,11.2516656]
[1730335822943,81.2516656,175.46,175.42,5.7006]
[1730335823150,70.0,175.44,175.42,5.7006]
[1730335824148,70.0,175.44,175.41,19.9531]
[1730335834863,70.0,175.44,175.4,11.2516656]
[1730335834864,11.2516656,175.42,175.38,14.2543]
[1730335835070,70.0,175.42,175.38,31.2077656]
[1730335835446,70.0,175.42,175.39,11.2516656]
[1730335836452,70.0,175.42,175.38,31.2077656]
[1730335836656,86.9522656,175.42,175.38,14.2543]
[1730335837142,11.2516656,175.39,175.36,23.776884]
[1730335837468,81.2516656,175.4,175.36,23.776884]
[1730335837667,11.2516656,175.39,175.36,23.776884]
[1730335837865,81.2516656,175.38,175.35,14.2568]
[1730335838573,81.2516656,175.38,175.32,11.2516656]
[1730335838574,70.0,175.36,175.33,5.7034]
[1730335839872,70.0,175.39,175.35,11.2516656]
[1730335841054,81.2516656,175.39,175.34,31.2128656]
[1730335841246,70.0,175.39,175.35,35.0285496]
[1730335841858,70.0,175.39,175.36,11.2516656]
[1730335842058,70.0,175.41,175.37,35.0285496]
[1730335842458,81.2516656,175.41,175.37,23.776884]
[1730335843254,70.0,175.39,175.35,23.776884]
[1730335843573,11.2516656,175.38,175.35,19.9599]
[1730335844555,81.2516656,175.37,175.34,23.776884]
[1730335844750,81.2516656,175.35,175.32,14.2594]
[1730335845668,81.2516656,175.35,175.32,19.9632]
[1730335846065,81.2516656,175.37,175.32,31.2148656]
[1730335846268,70.0,175.37,175.33,11.2516656]
[1730335846572,70.0,175.37,175.34,11.2516656]
[1730335847067,70.0,175.37,175.33,54.9908496]
[1730335847469,70.0,175.39,175.35,11.2516656]
[1730335847872,81.2516656,175.39,175.35,23.776884]
[1730335848263,81.2516656,175.39,175.33,43.739184]
[1730335848264,81.2516656,175.36,175.33,43.739184]
[1730335849863,81.2516656,175.36,175.33,38.035684]
[1730335850393,70.0,175.36,175.33,43.739184]
[1730335852959,81.2516656,175.36,175.33,43.739184]
[1730335853278,70.0,175.36,175.33,43.739184]
[1730335855477,70.0,175.34,175.3,14.2609]
[1730335855648,81.2516656,175.34,175.31,23.776884]
[1730335856374,81.2516656,175.34,175.3,19.9653]
[1730335856953,81.2516656,175.34,175.3,14.2609]
[1730335857252,11.2516656,175.31,175.28,5.705]
[1730335857467,70.0,175.3,175.27,5.7054]
[1730335857783,81.2516656,175.3,175.27,5.7054]
[1730335858254,70.0,175.3,175.27,5.7054]
[1730335860080,70.0,175.3,175.27,19.9691]
[1730335860600,70.0,175.31,175.28,23.776884]
[1730335861056,70.0,175.33,175.29,11.2516656]
[1730335861254,70.0,175.33,175.28,35.0285496]
[1730335861672,70.0,175.33,175.29,11.2516656]
[1730335861872,70.0,175.31,175.28,35.0285496]
[1730335862077,70.0,175.31,175.28,23.776884]
[1730335862593,70.0,175.31,175.29,5.7048]
[1730335863581,81.2516656,175.33,175.29,19.9668]
[1730335863772,70.0,175.33,175.29,31.2184656]
[1730335866884,70.0,175.35,175.31,11.2516656]
[1730335867072,70.0,175.35,175.3,35.0285496]
[1730335868269,70.0,175.37,175.33,11.2516656]
[1730335868778,70.0,175.37,175.32,11.2516656]
[1730335869776,70.0,175.37,175.33,23.776884]
[1730335869981,70.0,175.37,175.33,35.0285496]
[1730335870793,70.0,175.37,175.34,5.7032]
[1730335871379,70.0,175.39,175.34,31.2128656]
[1730335871691,70.0,175.39,175.36,11.2516656]
[1730335872573,70.0,175.41,175.37,5.7022]
[1730335872776,70.0,175.41,175.38,11.2516656]
[1730335872977,70.0,175.43,175.38,11.2516656]
[1730335873187,70.0,175.41,175.39,11.2516656]
[1730335873367,70.0,175.43,175.39,11.2516656]
[1730335873773,70.0,175.43,175.4,11.2516656]
[1730335874198,70.0,175.43,175.4,16.9526656]
[1730335874382,15.5375,175.44,175.4,31.2057656]
[1730335874688,15.5375,175.44,175.41,11.2516656]
[1730335874689,70.0,175.43,175.41,11.2516656]
[1730335874894,70.0,175.43,175.4,31.2057656]
[1730335875481,15.5375,175.44,175.4,31.2057656]
[1730335875666,81.2516656,175.47,175.41,35.0285496]
[1730335875869,70.0,175.47,175.43,11.2516656]
[1730335878692,70.0,175.47,175.43,23.776884]
[1730335879791,70.0,175.47,175.43,29.477084]
[1730335880501,75.6976,175.51,175.43,54.9793496]
[1730335880674,75.6976,175.51,175.46,11.2516656]
[1730335880996,70.0,175.49,175.46,11.2516656]
[1730335881374,70.0,175.49,175.43,43.727684]
[1730335881375,70.0,175.49,175.47,11.2516656]
[1730335881893,11.2516656,175.53,175.47,11.2516656]
[1730335881894,70.0,175.51,175.47,31.1978656]
[1730335882302,70.0,175.51,175.48,35.0285496]
[1730335882484,70.0,175.53,175.49,11.2516656]
[1730335882675,70.0,175.51,175.48,35.0285496]
[1730335882875,70.0,175.51,175.48,23.776884]
[1730335883089,81.2516656,175.53,175.48,35.0285496]
[1730335883369,70.0,175.53,175.48,35.0285496]
[1730335883999,70.0,175.53,175.49,19.9441]
[1730335884304,70.0,175.53,175.5,23.776884]
[1730335885280,70.0,175.53,175.49,19.9441]
[1730335885502,81.2516656,175.51,175.47,23.776884]
[1730335885796,75.6971,175.53,175.48,11.2516656]
[1730335886004,75.6971,175.53,175.48,16.9502656]
[1730335886797,75.6963,175.55,175.5,11.2516656]
[1730335886982,75.6963,175.55,175.49,23.776884]
[1730335886983,75.6963,175.55,175.51,11.2516656]
[1730335887495,5.6961,175.56,175.51,11.2516656]
[1730335888379,70.0,175.54,175.5,16.9493656]
[1730335888580,70.0,175.54,175.51,23.776884]
[1730335890604,86.9483656,175.54,175.51,23.776884]
[1730335891793,75.6967,175.54,175.51,23.776884]
[1730335894401,70.0,175.52,175.48,25.4982656]
[1730335894597,70.0,175.52,175.49,23.776884]
[1730335895092,81.2516656,175.52,175.46,11.2516656]
[1730335895295,81.2516656,175.52,175.44,14.2494]
[1730335895296,81.2516656,175.5,175.44,31.2006656]
[1730335895679,81.2516656,175.48,175.44,14.2494]
[1730335896613,70.0,175.48,175.44,14.2494]
[1730335897788,70.0,175.48,175.45,23.776884]
[1730335898205,81.2516656,175.46,175.39,5.7015]
[1730335898410,11.2516656,175.45,175.39,5.7015]
[1730335898706,81.2516656,175.46,175.4,11.2516656]
[1730335899495,11.2516656,175.45,175.41,23.776884]
[1730335899692,16.9513656,175.45,175.41,23.776884]
[1730335900602,11.2516656,175.44,175.41,23.776884]
[1730335901108,81.2516656,175.44,175.41,23.776884]
[1730335901311,11.2516656,175.43,175.4,23.776884]
[1730335901523,75.7,175.44,175.4,35.0285496]
[1730335901808,70.0,175.44,175.4,35.0285496]
[1730335902112,70.0,175.44,175.4,23.776884]
[1730335902694,70.0,175.44,175.4,29.477984]
[1730335904994,70.0,175.44,175.4,40.7296496]
[1730335906909,70.0,175.44,175.4,29.477984]
[1730335911817,81.2516656,175.41,175.34,11.2516656]
[1730335912010,11.2516656,175.39,175.34,11.2516656]
[1730335913192,11.2516656,175.4,175.35,43.736784]
[1730335914000,11.2516656,175.4,175.35,54.9884496]
[1730335914212,81.2516656,175.44,175.38,35.0285496]
[1730335914526,75.6999,175.44,175.4,11.2516656]
[1730335916026,75.6999,175.44,175.4,23.776884]
[1730335918908,75.6999,175.44,175.4,41.35112564]
[1730335919830,75.6999,175.44,175.4,23.776884]
[1730335920322,93.27414164,175.44,175.4,23.776884]
[1730335927037,87.57424164,175.46,175.4,61.30532564]
[1730335927220,75.6987,175.48,175.43,41.35112564]
[1730335927410,70.0,175.48,175.43,41.35112564]
[1730335927611,70.0,175.48,175.45,23.776884]
[1730335928816,70.0,175.48,175.44,23.776884]
[1730335932232,70.0,175.48,175.44,41.35112564]
[1730335932450,70.0,175.48,175.44,47.05102564]
[1730335932945,87.57424164,175.5,175.44,47.05102564]
[1730335933122,16.2299,175.51,175.47,41.35112564]
[1730335933431,93.27164164,175.52,175.47,41.35112564]
[1730335934546,70.0,175.5,175.47,23.776884]
[1730335934712,17.57424164,175.49,175.45,23.776884]
[1730335935034,70.0,175.48,175.45,23.776884]
[1730335936035,75.6986,175.48,175.45,23.776884]
[1730335936942,70.0,175.48,175.45,23.776884]
[1730335941418,70.0,175.46,175.42,23.776884]
[1730335941821,70.0,175.46,175.42,35.01887282]
[1730335942042,70.0,175.46,175.42,11.24198882]
[1730335943337,70.0,175.46,175.43,29.477084]
[1730335943740,70.0,175.43,175.37,14.2548]
[1730335943939,11.24198882,175.4,175.37,14.2548]
[1730335944139,11.24198882,175.41,175.37,14.2548]
[1730335944532,11.24198882,175.41,175.37,19.957]
[1730335945324,11.24198882,175.42,175.38,23.776884]
[1730335946134,11.24198882,175.4,175.38,23.776884]
[1730335946333,11.24198882,175.39,175.38,23.776884]
[1730335946642,11.24198882,175.39,175.38,29.478784]
[1730335946957,11.24198882,175.4,175.38,29.478784]
[1730335948445,75.7003,175.43,175.38,29.478784]
[1730335948446,11.24198882,175.41,175.38,29.478784]
[1730335948854,81.24198882,175.41,175.38,29.478784]
[1730335949023,11.24198882,175.39,175.38,23.776884]
[1730335949219,11.24198882,175.39,175.38,43.733484]
[1730335949536,81.24198882,175.39,175.36,23.776884]
[1730335949729,81.24198882,175.37,175.31,39.76158882]
[1730335949931,11.24198882,175.35,175.32,19.9633]
[1730335950236,11.24198882,175.35,175.32,14.2595]
[1730335950552,11.24198882,175.33,175.32,14.2595]
[1730335950731,11.24198882,175.34,175.32,14.2595]
[1730335951436,11.24198882,175.33,175.29,19.9668]
[1730335951840,11.24198882,175.33,175.3,23.776884]
[1730335953027,81.24198882,175.33,175.3,23.776884]
[1730335955063,11.24198882,175.32,175.3,23.776884]
[1730335955285,70.0,175.31,175.26,25.50638882]
[1730335955947,70.0,175.31,175.27,11.24198882]
[1730335956447,5.7038,175.33,175.26,14.2644]
[1730335956448,70.0,175.33,175.3,11.24198882]
[1730335956756,70.0,175.33,175.29,35.01887282]
[1730335956953,11.24198882,175.32,175.29,29.481484]
[1730335958538,81.24198882,175.33,175.29,29.481484]
[1730335958737,70.0,175.33,175.29,54.98547282]
[1730335960237,81.24198882,175.33,175.29,43.743484]
[1730335961847,70.0,175.33,175.29,54.98547282]
[1730335962254,81.24198882,175.33,175.29,43.743484]
[1730335964845,11.24198882,175.32,175.27,11.24198882]
[1730335965051,70.0,175.28,175.24,19.972]
[1730335965959,81.24198882,175.3,175.25,11.24198882]
[1730335966165,86.94648882,175.3,175.26,23.776884]
[1730335966562,70.0,175.28,175.26,23.776884]
[1730335967363,70.0,175.28,175.25,29.482984]
[1730335967869,70.0,175.28,175.25,40.72497282]
[1730335968847,70.0,175.28,175.25,29.482984]
[1730335969645,70.0,175.28,175.25,40.72497282]
[1730335969842,70.0,175.28,175.25,29.482984]
[1730335970667,70.0,175.32,175.28,23.776884]
[1730335970970,70.0,175.32,175.29,11.24198882]
[1730335971465,70.0,175.32,175.3,23.776884]
[1730335972251,102.37678882,175.34,175.3,23.776884]
[1730335972764,70.0,175.32,175.3,23.776884]
[1730335972957,70.0,175.32,175.3,29.481284]
[1730335973749,91.1348,175.34,175.3,29.481284]
[1730335977570,70.0,175.32,175.3,29.481284]
[1730335977773,102.37678882,175.34,175.3,29.481284]
[1730335978772,70.0,175.32,175.3,29.481284]
[1730335980172,70.0,175.32,175.3,40.72327282]
[1730335980354,91.1348,175.34,175.3,40.72327282]
[1730335980860,85.4316,175.34,175.3,54.98447282]
[1730335984847,70.0,175.34,175.32,23.776884]
[1730335985750,70.0,175.34,175.31,23.776884]
[1730335985954,86.94528882,175.34,175.31,23.776884]
[1730335987171,70.0,175.32,175.3,14.2612]
[1730335989683,70.0,175.32,175.29,11.24198882]
[1730335989982,70.0,175.32,175.3,23.776884]
[1730335990386,70.0,175.32,175.29,23.776884]
[1730335991387,70.0,175.32,175.29,29.481484]
[1730335992283,70.0,175.32,175.29,43.743484]
[1730335993701,70.0,175.32,175.29,54.98547282]
[1730335995077,70.0,175.32,175.29,43.743484]
[1730335997382,70.0,175.32,175.29,54.98547282]
[1730335998684,70.0,175.32,175.29,43.743484]
[1730336016295,70.0,175.32,175.29,54.98547282]
[1730336016789,70.0,175.34,175.29,54.98547282]
[1730336017380,70.0,175.36,175.32,11.24198882]
[1730336017581,70.0,175.36,175.33,23.776884]
[1730336017980,70.0,175.36,175.32,23.776884]
[1730336018179,70.0,175.36,175.32,29.480584]
[1730336019589,11.24198882,175.35,175.32,29.480584]
[1730336019791,70.0,175.34,175.32,23.776884]
[1730336020098,70.0,175.32,175.29,23.776884]
[1730336020299,5.7028,175.35,175.26,16.94778882]
[1730336020300,70.0,175.3,175.26,16.94778882]
[1730336020597,70.0,175.3,175.27,11.24198882]
[1730336020899,11.24198882,175.32,175.26,14.2645]
[1730336020900,70.0,175.28,175.26,14.2645]
[1730336021602,81.24198882,175.3,175.26,14.2645]
[1730336022602,86.94648882,175.3,175.26,14.2645]
[1730336025200,75.7045,175.3,175.26,11.24198882]
[1730336027407,70.0,175.28,175.26,23.776884]
[1730336027583,70.0,175.28,175.25,23.776884]
[1730336027907,70.0,175.28,175.25,35.01887282]
[1730336029190,70.0,175.28,175.25,29.482784]
[1730336029599,70.0,175.28,175.25,40.72477282]
[1730336032414,70.0,175.3,175.26,11.24198882]
[1730336032617,85.1555,175.32,175.28,35.01887282]
[1730336032792,70.0,175.32,175.29,11.24198882]
[1730336032993,70.0,175.32,175.3,23.776884]
[1730336033695,70.0,175.32,175.29,23.776884]
[1730336034112,70.0,175.32,175.29,29.481584]
[1730336040195,70.0,175.32,175.29,43.743584]
[1730336041515,70.0,175.32,175.29,54.98557282]
[1730336044120,70.0,175.34,175.31,23.776884]
[1730336044430,97.84738882,175.36,175.31,23.776884]
[1730336044615,70.0,175.34,175.31,23.776884]
[1730336044817,70.0,175.34,175.3,23.776884]
[1730336045331,70.0,175.32,175.3,23.776884]
[1730336046227,70.0,175.34,175.3,29.481284]
[1730336046411,70.0,175.34,175.3,54.98447282]
[1730336050122,70.0,175.34,175.31,11.24198882]
[1730336050328,70.0,175.34,175.32,23.776884]
[1730336051624,86.94518882,175.34,175.3,14.2612]
[1730336051827,86.94518882,175.34,175.31,23.776884]
[1730336055443,86.94518882,175.34,175.3,19.9657]
[1730336055651,70.0,175.32,175.29,23.776884]
[1730336056850,70.0,175.32,175.29,29.481484]
[1730336062953,75.7032,175.34,175.29,54.98547282]
[1730336063957,75.7032,175.34,175.29,43.743484]
[1730336063958,70.0,175.32,175.29,43.743484]
[1730336064157,70.0,175.3,175.28,23.776884]
[1730336064364,70.0,175.3,175.27,23.776884]
[1730336065037,70.0,175.3,175.28,11.24198882]
[1730336065244,70.0,175.3,175.27,40.72417282]
[1730336065549,70.0,175.3,175.27,29.482184]